[Event "Sautron op 15th"]
[Site "Sautron"]
[Date "2015.10.24"]
[Round "2.1"]
[White "Le Roux, Jean Pierre"]
[Black "Delorme, Alban"]
[Result "1-0"]
[ECO "D56"]
[WhiteElo "2572"]
[BlackElo "2303"]
[Annotator "RR"]
[PlyCount "75"]
[EventDate "2015.10.24"]
[EventType "swiss"]
[EventRounds "9"]
[EventCountry "FRA"]
[SourceTitle "EXT 2019"]
[Source "ChessBase"]
[SourceDate "2018.10.10"]
[SourceVersion "1"]
[SourceVersionDate "2018.10.10"]
[SourceQuality "1"]
[TimeControl "40/5400+30:1800+30"]
[WhiteClock "0:06:14"]
[BlackClock "0:17:28"]

1. d4 {[%emt 0:00:00]} d5 {[%emt 0:00:00]} 2. Nf3 {[%emt 0:00:23]} Nf6 {
[%emt 0:01:13]} 3. c4 {[%emt 0:00:19]} e6 {[%emt 0:00:10]} 4. Nc3 {[%emt 0:01:
22]} Be7 {[%emt 0:03:12]} 5. Bg5 {[%emt 0:00:14]} h6 {[%emt 0:01:16]} 6. Bh4 {
[%emt 0:00:15]} O-O {[%emt 0:01:19]} 7. e3 {[%emt 0:01:18]} Ne4 {[%emt 0:03:37]
} (7... b6) 8. Bxe7 {[%emt 0:00:06]} Qxe7 {[%emt 0:00:09]} 9. Rc1 {[%emt 0:00:
06]} Rd8 $6 {[%emt 0:08:43] Une ligne secondaire assez passive et qui donne
une petite avance de développement aux Blancs} (9... c6 $142 10. Bd3 Nxc3 11.
Rxc3 dxc4 12. Bxc4 Nd7 13. O-O b6 14. Bd3 c5 15. Qc2 Bb7 16. Bh7+ Kh8 17. Be4
Bxe4 18. Qxe4 a5 19. h3 Rfd8 20. Rfc1 cxd4 21. Nxd4 Nc5 22. Qc2 Rac8 23. Nb3
Nxb3 24. Rxc8 Nxc1 25. Qxc1 Rxc8 26. Qxc8+ Kh7 27. Qc2+ Kg8 28. a3 {1/2-1/2 
(28) Harikrishna,P (2740)-Moiseenko,A (2710) Kocaeli 2015}) (9... Nxc3 10. Rxc3
c6) 10. Qc2 {[%emt 0:07:09]} Nxc3 {[%emt 0:04:19]} 11. Qxc3 {[%emt 0:00:10]
[%csl Ge5]} c6 {[%emt 0:07:09]} 12. Be2 {[%emt 0:04:35]} (12. Bd3) 12... Nd7 {
[%emt 0:01:57]} 13. O-O {[%emt 0:01:54]} dxc4 $146 {[%emt 0:04:45]} (13... a5
14. a3 Nf6 15. Rfd1 Bd7 16. Bd3 Be8 17. Bb1 b5 18. c5 Nd7 19. Re1 Rdb8 20. b4
Ra7 21. Nd2 axb4 22. axb4 Rba8 23. Nb3 f5 24. Na5 Nf6 25. f3 Qc7 26. e4 dxe4
27. fxe4 Ng4 28. g3 Qd7 29. Rcd1 Nf6 30. exf5 exf5 31. Re5 g6 32. Ba2+ Bf7 33.
Bxf7+ Kxf7 34. Qb3+ Kg7 35. Qe6 Rc8 36. Qxd7+ Rxd7 37. Re6 Rdc7 38. d5 cxd5 39.
Rb6 Re7 40. Rxb5 Re2 41. Rb7+ Kf8 42. Rb6 Kg7 43. Rb7+ {Donchenko,A-Loisha
Rostov on Don 1972 1/2-1/2 (69)}) 14. Qxc4 {[%emt 0:01:20]} e5 {[%emt 0:01:31]}
15. Rfd1 $32 {[%emt 0:01:10][%csl Ra8,Rc8]} Nb6 {[%emt 0:08:13]} 16. Qc5 $1 {
[%emt 0:06:43] Transpose dans une bonne finale pour les Blancs} Qxc5 {[%emt 0:
05:04]} 17. dxc5 {[%emt 0:00:27]} Rxd1+ {[%emt 0:00:30]} 18. Bxd1 {[%emt 0:05:
22]} (18. Rxd1 $2 Na4 {[%cal Ga4c5,Ga4b2]}) 18... Nd7 {[%emt 0:02:11]} 19. Nd2
{[%emt 0:01:10][%csl Rb7,Rc8][%cal Gd2e4,Ge4d6]} Kf8 {[%emt 0:03:48]} 20. Bb3
$32 {[%emt 0:06:54][%csl Ra8,Rc8]} (20. Ne4 f5 21. Nd6 Ke7) 20... Ke7 {[%emt 0:
01:31]} 21. f4 $1 {[%emt 0:00:55]} f5 {[%emt 0:05:42]} 22. Kf2 {[%emt 0:05:39]}
Nf6 {[%emt 0:01:49]} 23. h3 {[%emt 0:01:19]} e4 {[%emt 0:02:07][%csl Rc8]} 24.
Rc4 {[%emt 0:06:40]} (24. Nc4 {[%cal Gc4e5]}) 24... Be6 {[%emt 0:05:12]} 25.
Rb4 $36 {[%emt 0:03:01]} Rb8 {[%emt 0:01:14]} 26. Bxe6 {[%emt 0:07:10]} Kxe6 {
[%emt 0:00:33]} 27. Nb3 $1 {[%emt 0:00:31][%csl Rb7,Rc6][%cal Gb3a5]} (27. Nc4
Nd5 28. Rb3) 27... Nd7 {[%emt 0:05:24]} 28. g4 $1 $40 {[%emt 0:05:04] Avec des
coups simples, le GMI a pris un gros avantage} g6 {[%emt 0:01:38]} 29. Rd4 $1 {
[%emt 0:08:48][%csl Gd6,Rg6,Rh6][%cal Gd4d6]} Ke7 {[%emt 0:00:55]} 30. Rd6 {
[%emt 0:03:21]} Nxc5 {[%emt 0:00:28]} 31. Rxg6 {[%emt 0:00:08]} Nd3+ {[%emt 0:
01:55]} (31... Nxb3 32. axb3 {[%csl Rh6]}) 32. Ke2 {[%emt 0:05:07]} c5 {
[%emt 0:01:33]} 33. gxf5 {[%emt 0:09:05]} (33. Rxh6) 33... c4 $2 {[%emt 0:00:
28]} 34. Nd2 {[%emt 0:00:16][%cal Gd2c4,Gd2e4]} Nxb2 {[%emt 0:00:19]} 35. Nxe4
$18 {[%emt 0:00:05]} b5 {[%emt 0:00:30]} 36. Rxh6 {[%emt 0:02:22]} Rf8 {
[%emt 0:00:32]} 37. Rh7+ {[%emt 0:01:37] Une partie a sens unique} Kd8 {
[%emt 0:00:06]} 38. f6 {[%emt 0:00:41]} 1-0